fUSD/lending_fUSD_20240127
["ID","MTS","AMOUNT","RATE_DAILY","PERIOD"]
[312831801,1706316638595,-195.25285258,0.00022649,2]
[312831804,1706316638605,-351.6665,0.00022649,2]
[312831806,1706316638615,-491.4029,0.00022649,2]
[312831807,1706316638624,-231.31,0.00022658,2]
[312831809,1706316638634,-167.63,0.00022718,2]
[312831812,1706316638644,-231.31,0.00022718,2]
[312831814,1706316638654,-45986.04461256,0.0002275,2]
[312831816,1706316638671,-2095.768675,0.0002275,2]
[312831819,1706316638687,-562.94062418,0.0002275,2]
[312831821,1706316638703,-920.50000104,0.0002275,2]
[312831928,1706316640687,-1783.5883227,0.0002275,2]
[312831929,1706316640699,-78221.6934133,0.0002275,2]
[312831930,1706316640709,-231.31,0.00022778,2]
[312831931,1706316640720,-800.0,0.00022815,2]
[312831932,1706316640730,-800.0,0.00022816,2]
[312831933,1706316640739,-231.31,0.00022838,2]
[312831934,1706316640748,-231.31,0.00022898,2]
[312831935,1706316640757,-152.95511515,0.000229,2]
[312831936,1706316640767,-176.58,0.00022908,2]
[312831937,1706316640776,-231.31,0.00022958,2]
[312831938,1706316640786,-214.66902567,0.00022974,2]
[312831939,1706316640795,-263.7,0.00022985,2]
[312831940,1706316640805,-287.1988675,0.00022997,2]
[312831941,1706316640814,-155.38943818,0.00022997,2]
[312831942,1706316640824,-208.07744816,0.00022997,2]
[312831943,1706316640834,-1324.52856252,0.00022997,2]
[312831944,1706316640843,-305.35893993,0.00022997,2]
[312831945,1706316640853,-241.08864406,0.00022997,2]
[312831946,1706316640866,-307.08660911,0.00022997,2]
[312831947,1706316640875,-160.22290525,0.00022997,2]
[312831948,1706316640885,-2802.16583513,0.00022997,2]
[312831949,1706316640894,-2783.81299809,0.00022997,2]
[312831950,1706316640904,-357.27227523,0.00022997,2]
[312831951,1706316640914,-7972.32541636,0.00022998,2]
[312831952,1706316640924,-155.0,0.00022998,2]
[312831953,1706316640934,-196.03295886,0.00022999,2]
[312831954,1706316640943,-155.0,0.00022999,2]
[312831955,1706316640953,-226.24702088,0.00022999,2]
[312831956,1706316640963,-264.79743095,0.00022999,2]
[312831957,1706316640974,-1639.37966579,0.00022999,2]
[312831958,1706316640983,-196309.5183474,0.00023,2]
[312831959,1706316640997,-7558.3830253,0.00023,2]
[312831960,1706316641010,-8947.21879473,0.00023,2]
[312831961,1706316641023,-8943.78386462,0.00023,2]
[312831962,1706316641036,-9077.54866152,0.00023,2]
[312831963,1706316641048,-8943.84023489,0.00023,2]
[312831964,1706316641060,-670.00995903,0.00023,2]
[312831974,1706316646282,-986.82290995,0.000229,2]
[312831975,1706316646292,-3203.24049005,0.00023,2]
[312831976,1706316646355,-377.60776255,0.00023,2]
[312831977,1706316646477,-1885.10149959,0.00023,2]
[312832128,1706316659526,155.0,0.00021617,2]
[312832129,1706316669884,1599.287,0.00021616,2]
[312832130,1706316676004,1970.1526,0.00021616,2]
[312832131,1706316693986,439.81997035,0.0002162,2]
[312832132,1706316694011,4513.27846933,0.0002162,2]
[312832133,1706316694037,4513.27846933,0.0002162,2]
[312832134,1706316694061,4513.27846933,0.0002162,2]
[312832135,1706316694085,4513.27846933,0.0002162,2]
[312832136,1706316694110,4513.27846933,0.0002162,2]
[312832137,1706316694139,632.83193048,0.0002162,2]
[312832138,1706316694928,5000.0,0.00021617,2]
[312832139,1706316711307,1000.0,0.00021616,2]
[312832140,1706316730002,8234.5975,0.00021616,2]
[312832141,1706316731294,1023.2535,0.00021616,2]
[312832142,1706316767620,5048.33428235,0.00021614,2]
[312832143,1706316836323,400.0,0.0002,2]
[312832144,1706316839114,5000.0,0.00021617,2]
[312832145,1706316948233,233.62,0.00020242,2]
[312832146,1706317366228,233.18,0.00019872,2]
[312832147,1706317436135,2000.0,0.00021537,2]
[312832148,1706317468505,314.83,0.00021586,2]
[312832149,1706317519109,669.56,0.00021432,2]
[312832150,1706317780859,167.63,0.00021377,2]
[312832151,1706317781257,200.0,0.00021377,2]
[312832152,1706317819532,250.0,0.00021444,2]
[312832154,1706317832326,-176.58,0.00021749,2]
[312832155,1706317832337,-163.44384673,0.00021778,2]
[312832156,1706317832347,-170.15,0.00021784,2]
[312832157,1706317832357,-30.24077555,0.0002183,2]
[312832158,1706317832424,-141.30922445,0.0002183,2]
[312832159,1706317832434,-169.43458277,0.00021878,2]
[312832160,1706317832443,-169.43458277,0.00021878,2]
[312832161,1706317832453,-685.17,0.00021913,2]
[312832162,1706317832462,-300.0,0.00021917,2]
[312832163,1706317832473,-300.0,0.00021917,2]
[312832164,1706317832482,-300.0,0.00021917,2]
[312832165,1706317832490,-300.0,0.00021917,2]
[312832166,1706317832500,-300.0,0.00021917,2]
[312832167,1706317832510,-300.0,0.00021917,2]
[312832168,1706317832520,-300.0,0.00021917,2]
[312832169,1706317832529,-300.0,0.00021917,2]
[312832170,1706317832538,-167.93767743,0.00021999,2]
[312832171,1706317832548,-918.36,0.00021999,2]
[312832172,1706317832562,-348.13,0.00021999,2]
[312832173,1706317832572,-1022.55,0.00021999,2]
[312832174,1706317832582,-6324.17,0.00021999,2]
[312832175,1706317832594,-9999.99,0.00021999,2]
[312832176,1706317832606,-188.08619428,0.00022,2]
[312832177,1706317832615,-1043.56158327,0.00022,2]
[312832178,1706317832625,-2784.9835523,0.00022,2]
[312832179,1706317832635,-163.44384669,0.00022002,2]
[312832180,1706317832644,-4551.77,0.00022005,2]
[312832181,1706317832655,-170.15,0.00022068,2]
[312832182,1706317832666,-163.44384669,0.00022227,2]
[312832183,1706317832678,-176.58,0.00022297,2]
[312832185,1706317832688,-170.15,0.00022351,2]
[312832187,1706317832697,-408.02,0.00022392,2]
[312832189,1706317832706,-163.44384669,0.00022451,2]
[312832190,1706317832715,-9990.99611756,0.00022505,2]
[312832191,1706317832728,-318.4195,0.00022505,2]
[312832192,1706317832739,-260.10718979,0.00022505,2]
[312832194,1706317832748,-3895.06332556,0.00022506,2]
[312832196,1706317832760,-1012.92672215,0.00022506,2]
[312832199,1706317832772,-654.59890069,0.00022506,2]
[312832201,1706317832783,-4270.35550896,0.00022506,2]
[312832203,1706317832794,-885.74554264,0.00022506,2]
[312832205,1706317832803,-499.99,0.00022547,2]
[312832207,1706317832812,-170.15,0.00022635,2]
[312832209,1706317832821,-334.18590284,0.0002265,3]
[312832211,1706317832833,-680.86158647,0.0002265,3]
[312832213,1706317832842,-230.25490371,0.0002265,2]
[312832214,1706317832854,-533.54363831,0.0002265,2]
[312832215,1706317832871,-642.25225798,0.0002265,2]
[312832216,1706317832881,-2116.1261,0.0002265,2]
[312832217,1706317832890,-4431.1041634,0.0002265,2]
[312832218,1706317832902,-568.8958366,0.0002265,2]
[312832219,1706317832911,-163.44384669,0.00022676,2]
[312832220,1706317832921,-499.99,0.00022684,2]
[312832221,1706317832930,-695.39,0.00022684,2]
[312832222,1706317832939,-247.31941887,0.00022739,2]
[312832223,1706317832948,-109.78321497,0.00022748,2]
[312832224,1706317832959,-191.63461974,0.00022748,2]
[312832225,1706317833127,-622.52340435,0.00022749,2]
[312832226,1706317833292,-817.67329241,0.00022749,2]
[312832227,1706317833304,-311.06238185,0.00022749,2]
[312832228,1706317833316,-22306.07414329,0.00022749,2]
[312832229,1706317833325,-417895.17369053,0.00022749,2]
[312832230,1706317833337,-6429.73131915,0.00022749,2]
[312832231,1706317833348,-56277.47625598,0.00022749,2]
[312832232,1706317833359,-614.479575,0.00022749,2]
[312832233,1706317833371,-96628.34543819,0.00022749,2]
[312832235,1706317838354,-1811.90215072,0.00022749,2]
[312832236,1706317838366,-12482.59892909,0.00022749,2]
[312832237,1706317838378,-968.587,0.00022749,2]
[312832238,1706317838390,-271.708502,0.00022749,2]
[312832239,1706317838401,-5097.31938343,0.00022749,2]
[312832240,1706317838464,-10575.43615641,0.00022749,2]
[312832241,1706317838521,-4269.57411313,0.00022749,2]
[312832242,1706317838533,-9653.42588603,0.00022749,2]
[312832243,1706317838576,-39462.98763074,0.00022749,2]
[312832244,1706317838588,-72961.50301597,0.00022749,2]
[312832245,1706317838634,-18922.2246306,0.00022749,2]
[312832246,1706317838646,-1210.85,0.00022749,2]
[312832247,1706317838658,-734.70866164,0.00022749,2]
[312832248,1706317838688,-42149.46021743,0.00022749,2]
[312832251,1706317838700,-468.50164004,0.00022749,2]
[312832256,1706317840839,-714.8711922,0.00022749,2]
[312832257,1706317841592,-4292.4,0.00022749,2]
[312832258,1706317841650,-3211.51643816,0.00022749,2]
[312832259,1706317841662,-337.81845979,0.00022749,2]
[312832260,1706317841676,-1367.48500003,0.00022749,2]
[312832261,1706317841688,-4011.98606889,0.00022749,2]
[312832262,1706317841702,-526.34601085,0.00022749,2]
[312832263,1706317841724,-1831.75040576,0.00022749,2]
[312832278,1706317843046,246.38,0.00020933,2]
[312832309,1706317843518,-533.0,0.00022749,2]
[312832312,1706317843530,-1911.96811593,0.00022749,2]
[312832321,1706317843633,-5574.52332383,0.00022749,2]
[312832328,1706317847393,-398.45291272,0.00022748,2]
[312832329,1706317847405,-671.87985704,0.00022748,2]
[312832330,1706317847414,-1039.38949825,0.00022749,2]
[312832331,1706317847673,-9701.03857726,0.00022749,2]
[312832332,1706317847687,-20851.06418994,0.00022749,2]
[312832333,1706317847788,-1013.29838051,0.00022749,2]
[312832334,1706317847844,-2361.9119057,0.00022749,2]
[312832341,1706318025555,748.13,0.00021615,2]
[312832343,1706318183619,4426.48,0.000216,2]
[312832348,1706318289970,250.0,0.00021575,2]
[312832351,1706318299958,750.0,0.00021572,2]
[312832352,1706318305780,258.93,0.00019654,2]
[312832354,1706318317619,166.86,0.00021572,2]
[312832356,1706318328246,2000.0,0.00021576,2]
[312832358,1706318334659,279.77396429,0.00021575,2]
[312832362,1706318361316,23890.0,0.00021577,2]
[312832364,1706318392218,208.99,0.00021568,2]
[312832366,1706318437534,494.83767446,0.00021564,2]
[312832367,1706318452881,557.96,0.00021372,2]
[312832368,1706318522441,164.38,0.00021318,2]
[312832369,1706318564281,317.02,0.00021328,2]
[312832370,1706318574996,401.49,0.00021328,2]
[312832371,1706318575244,176.58,0.00021317,2]
[312832372,1706318728458,245.98,0.00019398,2]
[312832373,1706318815495,346.97,0.00021522,2]
[312832374,1706318815713,346.97,0.00021581,2]
[312832375,1706318865555,464.96,0.00021276,2]
[312832376,1706318969160,158.51,0.00021132,2]
[312832377,1706318978216,678.8,0.00021117,2]
[312832378,1706318987494,13034.20202134,0.00021619,2]
[312832385,1706319031519,-3334.52347886,0.0002162,2]
[312832386,1706319031529,-300.0,0.00021626,2]
[312832387,1706319031538,-150.0,0.00021626,2]
[312832388,1706319031547,-2257.44331111,0.00021627,2]
[312832389,1706319031556,-2257.44331111,0.00021627,2]
[312832390,1706319031565,-494.83767435,0.00021634,2]
[312832391,1706319031580,-346.97,0.0002164,2]
[312832392,1706319031590,-245.98,0.00021662,2]
[312832393,1706319031599,-346.97,0.00021699,2]
[312832394,1706319031609,-494.83767435,0.00021705,2]
[312832395,1706319031618,-346.97,0.00021758,2]
[312832396,1706319031627,-361.98,0.00021758,2]
[312832397,1706319031637,-1346.15,0.00021758,2]
[312832398,1706319031646,-1534.68,0.00021758,2]
[312832399,1706319031655,-499.99,0.00021758,2]
[312832400,1706319031665,-494.83767435,0.00021775,2]
[312832401,1706319031674,-346.97,0.00021817,2]
[312832402,1706319031684,-494.83767435,0.00021845,2]
[312832403,1706319031693,-176.58,0.00021865,2]
[312832404,1706319031702,-346.97,0.00021876,2]
[312832405,1706319031711,-494.83767435,0.00021916,2]
[312832406,1706319031720,-150.99,0.00021916,2]
[312832407,1706319031729,-250.0,0.00021918,2]
[312832408,1706319031738,-346.97,0.00021935,2]
[312832409,1706319031750,-494.83767435,0.00021986,2]
[312832410,1706319031759,-346.97,0.00021994,2]
[312832411,1706319031769,-2784.9835523,0.00022,2]
[312832412,1706319031778,-500.0,0.00022,2]
[312832413,1706319031788,-250.0,0.00022,2]
[312832414,1706319031800,-150.0,0.00022,2]
[312832415,1706319031811,-150.49646504,0.00022,2]
[312832416,1706319031821,-346.97,0.00022053,2]
[312832418,1706319031830,-494.83767435,0.00022056,2]
[312832420,1706319031840,-346.97,0.00022112,2]
[312832422,1706319031849,-494.83767435,0.00022127,2]
[312832424,1706319031860,-346.97,0.00022171,2]
[312832426,1706319031869,-494.83767435,0.00022197,2]
[312832428,1706319031878,-346.97,0.0002223,2]
[312832430,1706319031888,-1017.00678039,0.00022267,3]
[312832432,1706319031898,-494.83767435,0.00022267,2]
[312832433,1706319031908,-250.0,0.00022274,2]
[312832434,1706319031917,-346.97,0.00022289,2]
[312832435,1706319031927,-494.83767435,0.00022337,2]
[312832436,1706319031936,-159.53225694,0.00022342,2]
[312832437,1706319031945,-346.97,0.00022348,2]
[312832439,1706319031955,-346.97,0.00022407,2]
[312832442,1706319031964,-494.83767435,0.00022408,2]
[312832444,1706319031976,-176.58,0.00022413,2]
[312832445,1706319031985,-9650.31143787,0.00022419,2]
[312832447,1706319031994,-598.71592325,0.00022431,2]
[312832449,1706319032004,-203.23704982,0.00022439,2]
[312832451,1706319032014,-176.52339691,0.0002244,2]
[312832454,1706319032023,-174.15652407,0.0002244,5]
[312832456,1706319032033,-15283.72849586,0.00022441,2]
[312832458,1706319032045,-4402.32820667,0.00022441,2]
[312832460,1706319032057,-1418.84797101,0.00022441,2]
[312832462,1706319032069,-511.06796016,0.00022441,2]
[312832465,1706319032080,-1179.6499085,0.00022441,2]
[312832467,1706319032092,-1001.29826899,0.00022441,2]
[312832471,1706319032115,-298.82689054,0.00022441,2]
[312832473,1706319032131,-307.78089947,0.00022441,2]
[312832476,1706319032142,-497.48514,0.00022441,2]
[312832478,1706319032155,-350.00592856,0.00022441,2]
[312832480,1706319032167,-644.54666168,0.00022441,2]
[312832482,1706319032180,-10882.01057348,0.00022441,2]
[312832485,1706319032192,-1886.34881642,0.00022441,2]
[312832487,1706319032203,-236649.83350857,0.00022441,2]
[312832489,1706319032215,-2034.25707462,0.00022441,2]
[312832491,1706319032226,-376.86,0.00022441,2]
[312832494,1706319032238,-1776.07721684,0.00022441,2]
[312832496,1706319032249,-430.67499105,0.00022441,2]
[312832497,1706319032261,-504.021,0.00022441,2]
[312832498,1706319032320,-652.78451772,0.00022441,2]
[312832499,1706319032330,-369570.27105734,0.00022441,2]
[312832500,1706319032341,-1913.38049556,0.00022441,2]
[312832501,1706319032353,-2247.56244449,0.00022441,2]
[312832502,1706319032365,-1026.39824093,0.00022441,2]
[312832503,1706319032378,-1531.9762125,0.00022441,2]
[312832504,1706319032393,-4100.24411967,0.00022441,2]
[312832505,1706319032407,-5449.43382607,0.00022441,2]
[312832509,1706319037514,-418.29296577,0.00022441,2]
[312832510,1706319037525,-57.39284228,0.00022441,2]
[312832511,1706319037534,-638.03647667,0.00022441,2]
[312832512,1706319037543,-10174.93871606,0.00022441,2]
[312832513,1706319037554,-3923.54313859,0.00022441,2]
[312832514,1706319037572,-339.94986987,0.00022441,2]
[312832515,1706319037701,-837.79361151,0.00022441,2]
[312832516,1706319037750,-376439.33130699,0.00022441,2]
[312832517,1706319037762,-435112.5258,0.00022442,2]
[312832518,1706319037771,-3503.4653,0.00022444,2]
[312832519,1706319037782,-346.97,0.00022466,2]
[312832520,1706319037793,-494.83767435,0.00022478,2]
[312832521,1706319037804,-263.71,0.00022497,2]
[312832522,1706319037815,-193.39019381,0.0002252,2]
[312832523,1706319037825,-20807.81077772,0.0002252,2]
[312832524,1706319037834,-346.97,0.00022525,2]
[312832525,1706319037843,-11923.5228,0.00022542,2]
[312832526,1706319037852,-960.0405,0.00022542,2]
[312832527,1706319037861,-2609.78407752,0.00022543,2]
[312832528,1706319037871,-164.09888818,0.00022543,2]
[312832529,1706319037882,-5000.0,0.00022544,2]
[312832530,1706319037892,-12940.29583132,0.00022544,2]
[312832531,1706319037903,-182.1248519,0.00022544,2]
[312832532,1706319037913,-268.94837252,0.00022544,2]
[312832533,1706319037922,-500.0,0.00022548,2]
[312832534,1706319037932,-250.0,0.00022548,2]
[312832535,1706319037941,-150.0,0.00022548,2]
[312832536,1706319037951,-494.83767435,0.00022548,2]
[312832537,1706319037961,-346.97,0.00022584,2]
[312832538,1706319037973,-494.83767435,0.00022619,2]
[312832539,1706319037986,-598.71592325,0.00022634,2]
[312832540,1706319037997,-279.56119989,0.00022642,2]
[312832541,1706319038007,-346.97,0.00022643,2]
[312832542,1706319038019,-789.2663152,0.00022644,2]
[312832543,1706319038029,-4934.9636,0.00022644,2]
[312832544,1706319038038,-245000.0,0.00022644,2]
[312832545,1706319038047,-15588.9238,0.00022644,2]
[312832546,1706319038055,-16133.7783,0.00022644,2]
[312832547,1706319038065,-832.4406,0.00022644,2]
[312832548,1706319038075,-195.25285258,0.00022645,2]
[312832549,1706319038083,-168.19276947,0.00022645,2]
[312832550,1706319038092,-1728.0692,0.00022649,2]
[312832551,1706319038102,-4622.0556,0.00022649,2]
[312832552,1706319038111,-1000.0,0.00022649,2]
[312832553,1706319038120,-38917.3763,0.00022649,2]
[312832554,1706319038130,-494.83767435,0.00022689,2]
[312832555,1706319038140,-400.0,0.00022712,2]
[312832556,1706319038151,-3993.38476031,0.00022746,2]
[312832557,1706319038162,-155.85722777,0.00022747,2]
[312832558,1706319038172,-155.0,0.00022747,2]
[312832559,1706319038182,-155.0,0.00022747,2]
[312832560,1706319038191,-155.0,0.00022747,2]
[312832561,1706319038200,-526.42274982,0.00022747,2]
[312832562,1706319038209,-155.0,0.00022747,2]
[312832563,1706319038218,-1850.65137572,0.00022747,2]
[312832564,1706319038227,-941.78794294,0.00022747,2]
[312832565,1706319038237,-3031.76013356,0.00022747,2]
[312832566,1706319038246,-30467.84434423,0.00022747,2]
[312832567,1706319038255,-162.24662647,0.00022747,2]
[312832568,1706319038264,-276.6025158,0.00022747,2]
[312832569,1706319038274,-213.65259234,0.00022747,2]
[312832570,1706319038283,-203.14380127,0.00022747,2]
[312832571,1706319038292,-155.93996978,0.00022747,2]
[312832572,1706319038301,-155.0,0.00022747,2]
[312832573,1706319038310,-2139.90801857,0.00022747,2]
[312832574,1706319038319,-542.84106609,0.00022747,2]
[312832575,1706319038328,-584.77652974,0.00022747,2]
[312832576,1706319038337,-523.73846155,0.00022747,2]
[312832577,1706319038346,-164.8394199,0.00022747,2]
[312832578,1706319038355,-2769.6329867,0.00022747,2]
[312832579,1706319038364,-289.13231179,0.00022747,2]
[312832580,1706319038374,-759.8606458,0.00022748,2]
[312832581,1706319038383,-407.63909544,0.00022748,2]
[312832582,1706319038392,-155.0,0.00022748,2]
[312832583,1706319038402,-155.43144829,0.00022748,2]
[312832584,1706319038412,-1230.62846015,0.00022748,2]
[312832585,1706319038421,-155.0,0.00022748,2]
[312832586,1706319038431,-156.37067661,0.00022748,2]
[312832587,1706319038440,-2000.0,0.00022749,2]
[312832588,1706319038450,-200.0,0.00022749,2]
[312832589,1706319038459,-129570.53564878,0.0002275,2]
[312832590,1706319038469,-494.83767435,0.00022759,2]
[312832591,1706319038478,-800.0,0.00022815,2]
[312832592,1706319038488,-800.0,0.00022816,2]
[312832593,1706319038497,-250.0,0.00022822,2]
[312832594,1706319038506,-494.83767435,0.0002283,2]
[312832595,1706319038516,-494.83767435,0.000229,2]
[312832596,1706319038525,-55555.0,0.000229,2]
[312832597,1706319038534,-151.81793579,0.000229,2]
[312832598,1706319038543,-464.96,0.00022919,2]
[312832599,1706319038552,-176.58,0.00022961,2]
[312832600,1706319038562,-200.0,0.00022976,2]
[312832601,1706319038571,-598.71592325,0.0002299,2]
[312832602,1706319038580,-1131.61788344,0.00022997,2]
[312832603,1706319038589,-155.82054156,0.00022997,2]
[312832604,1706319038599,-213.25924755,0.00022997,2]
[312832605,1706319038609,-428.73247739,0.00022997,2]
[312832606,1706319038618,-242.92756214,0.00022997,2]
[312832607,1706319038627,-1251.32419028,0.00022997,2]
[312832608,1706319038637,-199.17071904,0.00022997,2]
[312832609,1706319038646,-1768.73893958,0.00022998,2]
[312832610,1706319038655,-507.36267549,0.00022998,2]
[312832611,1706319038665,-243.09346346,0.00022999,2]
[312832612,1706319038674,-261.32819885,0.00022999,2]
[312832613,1706319038684,-242.1049107,0.00022999,2]
[312832614,1706319038693,-216.93251452,0.00022999,2]
[312832615,1706319038703,-219.04810795,0.00022999,2]
[312832616,1706319038712,-358.20395294,0.00022999,2]
[312832617,1706319038721,-285.51851062,0.00022999,2]
[312832618,1706319038731,-266682.62145057,0.00023,2]
[312832619,1706319038740,-602225.01267569,0.00023,2]
[312832620,1706319038754,-1050.95543887,0.00023,2]
[312832621,1706319040116,-70522.9501201,0.00023,2]
[312832622,1706319040128,-23752.39298307,0.00023,2]
[312832623,1706319040138,-403871.29004084,0.00023,2]
[312832624,1706319040899,-1130.61982117,0.00023,2]
[312832625,1706319040940,-651.33221998,0.00023,2]
[312832651,1706319045721,-150.0,0.00022,2]
[312832653,1706319045731,-2500.0,0.00022542,2]
[312832655,1706319045740,-1735.80281789,0.000229,2]
[312832657,1706319045752,-1982.9641444,0.000229,2]
[312832658,1706319045763,-686.336,0.000229,2]
[312832667,1706319045857,-343.60980816,0.000229,2]
[312832669,1706319045870,-2746.1399994,0.000229,2]
[312832676,1706319137263,245.09,0.00021616,2]
[312832677,1706319187380,151.62021933,0.00024786,10]
[312832697,1706319665210,240.67,0.00020051,2]
[312832698,1706319802412,176.61,0.0002134,2]
[312832699,1706319935256,32413.0,0.000302,120]
[312832700,1706320104225,228.63,0.00019852,2]
[312832719,1706320231673,-158.51,0.00021668,2]
[312832722,1706320231682,-173.62889769,0.00021688,2]
[312832723,1706320231692,-230.22756947,0.00021703,2]
[312832724,1706320231704,-312.81243053,0.00021703,2]
[312832725,1706320231713,-145.04284944,0.00021746,2]
[312832726,1706320231734,-164.92715056,0.00021746,2]
[312832727,1706320231744,-748.22,0.0002177,2]
[312832728,1706320231753,-176.61,0.00021888,2]
[312832729,1706320231763,-456.96,0.00022054,2]
[312832730,1706320231772,-228.63,0.00022116,2]
[312832731,1706320231782,-11906.26938237,0.0002224,2]
[312832732,1706320231792,-2763.16215995,0.0002224,2]
[312832733,1706320231801,-6684.54,0.0002224,2]
[312832734,1706320231810,-2748.6095,0.0002224,2]
[312832735,1706320231820,-4932.8386,0.0002224,2]
[312832736,1706320231829,-9112.6752,0.0002224,2]
[312832737,1706320231839,-6287.9343,0.0002224,2]
[312832738,1706320231848,-1702.03776824,0.0002224,2]
[312832739,1706320231857,-1702.03776824,0.0002224,2]
[312832740,1706320231866,-432.0565,0.0002224,2]
[312832741,1706320231876,-1729.0007,0.0002224,2]
[312832742,1706320231885,-1000.0,0.0002224,2]
[312832743,1706320231897,-196.2362512,0.00022241,2]
[312832744,1706320231906,-1035.6276,0.00022241,2]
[312832745,1706320231915,-3500.8688,0.00022241,2]
[312832746,1706320231924,-302.76853509,0.00022339,2]
[312832747,1706320231934,-730.84,0.0002234,2]
[312832748,1706320231945,-499.99,0.0002234,2]
[312832749,1706320231955,-156153.64328779,0.0002234,2]
[312832750,1706320231967,-2444.74560792,0.0002234,2]
[312832753,1706320231978,-382.77809439,0.0002234,2]
[312832754,1706320231990,-2089.15,0.0002234,2]
[312832755,1706320232007,-878.64853345,0.0002234,2]
[312832756,1706320232020,-428.73774252,0.0002234,2]
[312832757,1706320232031,-802.19871115,0.0002234,2]
[312832758,1706320232049,-419.81251697,0.0002234,2]
[312832762,1706320237749,-282.38,0.00021659,2]
[312832763,1706320237759,-60.3700003,0.0002234,2]
[312832764,1706320237810,-158180.65315355,0.0002234,2]
[312832765,1706320237822,-737046.33226842,0.0002234,2]
[312832766,1706320237831,-150.99,0.0002234,2]
[312832767,1706320237841,-654.2742,0.00022341,2]
[312832768,1706320237850,-9766.34570159,0.00022341,2]
[312832769,1706320237870,-962.13169681,0.00022341,2]
[312832770,1706320237882,-28732.8830016,0.00022341,2]
[312832771,1706320237891,-51218.21591265,0.00022341,2]
[312832772,1706320237986,-3954.363667,0.00022341,2]
[312832797,1706320241063,-562.20005442,0.00022341,2]
[312832801,1706320244002,-42079.69559321,0.00022341,2]
[312832802,1706320244065,-736.45,0.00022341,2]
[312832803,1706320244076,-627.52602902,0.00022341,2]
[312832804,1706320244145,-518.12471944,0.00022341,2]
[312832805,1706320244189,-468.63000879,0.00022341,2]
[312832806,1706320244255,-2130.34773654,0.00022341,2]
[312832807,1706320244266,-325.39435214,0.00022341,2]
[312832808,1706320244315,-510.61729477,0.00022341,2]
[312832809,1706320244326,-339.26139319,0.00022341,2]
[312832810,1706320244337,-520.14303817,0.00022341,2]
[312832821,1706320245757,-658.85282172,0.0002224,2]
[312832822,1706320245768,-341.14717828,0.0002224,2]
[312832823,1706320245778,-138.81600807,0.00022341,2]
[312832824,1706320245841,-4639.4,0.00022341,2]
[312832825,1706320245852,-283.7162531,0.00022341,2]
[312832826,1706320245863,-587.2050527,0.00022341,2]
[312832827,1706320245902,-731.94216309,0.00022341,2]
[312832828,1706320245964,-9396.36664746,0.00022341,2]
[312832829,1706320245976,-2505.12168228,0.00022341,2]
[312832830,1706320245987,-859.39536,0.00022341,2]
[312832831,1706320246026,-9301.22189225,0.00022341,2]
[312832832,1706320246038,-548.2171008,0.00022341,2]
[312832833,1706320246049,-457.57599352,0.00022341,2]
[312832834,1706320246090,-280.21103288,0.00022341,2]
[312832835,1706320246101,-8702.29061083,0.00022341,2]
[312832839,1706320316603,207.9840214,0.00025686,10]
[312832840,1706320333840,-3335.28469283,0.00021997,2]
[312832841,1706320333863,-864.71530717,0.00021998,2]
[312832842,1706320417549,177.16005712,0.0002124,2]
[312832843,1706320428521,6653.0,0.0002,2]
[312832845,1706320527766,205.76,0.00019921,2]
[312832846,1706320827052,258.3,0.00021563,2]
[312832847,1706320975755,203.28,0.00019708,2]
[312832850,1706321063442,216.04601156,0.00023075,7]
[312832851,1706321189206,513.27846933,0.00021558,2]
[312832852,1706321189235,313.27846933,0.00021558,2]
[312832853,1706321189258,1173.44306134,0.00021558,2]
[312832854,1706321208744,172.83680924,0.00023075,7]
[312832856,1706321216345,306.71,0.00021571,2]
[312832857,1706321264725,301.44,0.00021558,2]
[312832859,1706321425483,200.92,0.00019657,2]
[312832876,1706321432272,-285.91347788,0.00021664,2]
[312832878,1706321432281,-242.96137018,0.00021665,2]